[Event "Early-Titled-Tuesday-Blitz-April-23-2024"]
[Site "Chess.com"]
[Date "2024.04.23"]
[Round "4"]
[White "HATilay"]
[Black "Airquake"]
[Result "1/2-1/2"]
[WhiteElo "2651"]
[BlackElo "2662"]
[TimeControl "180+1"]
[EndTime "8:41:01 PDT"]
[Termination "Game drawn - insufficient material"]

1. e4 {[%clk 0:03:00.9]} 1... c5 {[%clk 0:02:56.4]} 2. Nf3 {[%clk 0:03:01]} 2...
d6 {[%clk 0:02:56.6]} 3. d4 {[%clk 0:03:01.2]} 3... cxd4 {[%clk 0:02:57.5]} 4.
Nxd4 {[%clk 0:03:01.6]} 4... Nf6 {[%clk 0:02:57.9]} 5. Nc3 {[%clk 0:03:00.9]}
5... a6 {[%clk 0:02:58.4]} 6. Be2 {[%clk 0:03:01.4]} 6... g6 {[%clk 0:02:58.6]}
7. Be3 {[%clk 0:02:59.1]} 7... Bg7 {[%clk 0:02:59.1]} 8. f3 {[%clk 0:02:58.5]}
8... O-O {[%clk 0:02:59]} 9. Qd2 {[%clk 0:02:59]} 9... b5 {[%clk 0:02:58.9]} 10.
O-O {[%clk 0:02:53.5]} 10... Bb7 {[%clk 0:02:57.8]} 11. Rad1 {[%clk 0:02:52.8]}
11... Nbd7 {[%clk 0:02:57.4]} 12. Kh1 {[%clk 0:02:53.3]} 12... Qc7 {[%clk
0:02:55.9]} 13. a3 {[%clk 0:02:50.4]} 13... Ne5 {[%clk 0:02:55.2]} 14. Bh6
{[%clk 0:02:48.5]} 14... Rac8 {[%clk 0:02:50.3]} 15. Bxg7 {[%clk 0:02:48.1]}
15... Kxg7 {[%clk 0:02:49.8]} 16. Qg5 {[%clk 0:02:48.8]} 16... e6 {[%clk
0:02:24.9]} 17. f4 {[%clk 0:02:36.5]} 17... h6 {[%clk 0:02:24.6]} 18. Qg3 {[%clk
0:02:34.5]} 18... Nc4 {[%clk 0:02:15.1]} 19. Bxc4 {[%clk 0:02:26.7]} 19... Qxc4
{[%clk 0:02:11.9]} 20. e5 {[%clk 0:02:26.5]} 20... Nh5 {[%clk 0:01:54.8]} 21.
Qe3 {[%clk 0:02:06.6]} 21... dxe5 {[%clk 0:01:48.1]} 22. fxe5 {[%clk 0:02:04.3]}
22... b4 {[%clk 0:01:19.3]} 23. axb4 {[%clk 0:02:03.8]} 23... Qxb4 {[%clk
0:01:19.6]} 24. Ne4 {[%clk 0:02:04.4]} 24... Rxc2 {[%clk 0:00:49]} 25. Nxc2
{[%clk 0:01:16.3]} 25... Qxe4 {[%clk 0:00:49]} 26. Qxe4 {[%clk 0:01:16.7]} 26...
Bxe4 {[%clk 0:00:49.3]} 27. Nd4 {[%clk 0:01:11.3]} 27... g5 {[%clk 0:00:47.1]}
28. Ne2 {[%clk 0:01:04.9]} 28... Rb8 {[%clk 0:00:39.3]} 29. Rd7 {[%clk
0:00:50.4]} 29... Bg6 {[%clk 0:00:21.4]} 30. g4 {[%clk 0:00:35.5]} 30... Nf4
{[%clk 0:00:14.1]} 31. Nxf4 {[%clk 0:00:35.2]} 31... gxf4 {[%clk 0:00:15]} 32.
Rxf4 {[%clk 0:00:22.9]} 32... Rxb2 {[%clk 0:00:13.3]} 33. h4 {[%clk 0:00:23.4]}
33... h5 {[%clk 0:00:13.6]} 34. gxh5 {[%clk 0:00:20.6]} 34... Bxh5 {[%clk
0:00:13.3]} 35. Ra7 {[%clk 0:00:15.9]} 35... Ra2 {[%clk 0:00:10.6]} 36. Kg1
{[%clk 0:00:14.1]} 36... Bg6 {[%clk 0:00:07.8]} 37. Rg4 {[%clk 0:00:11.1]} 37...
Kh6 {[%clk 0:00:07.3]} 38. Rf4 {[%clk 0:00:10.8]} 38... Ra5 {[%clk 0:00:07.2]}
39. Ra8 {[%clk 0:00:10.3]} 39... Rxe5 {[%clk 0:00:06.9]} 40. Rxa6 {[%clk
0:00:10.5]} 40... Rb5 {[%clk 0:00:03.7]} 41. Kh2 {[%clk 0:00:10.4]} 41... Rb2+
{[%clk 0:00:03.4]} 42. Kg3 {[%clk 0:00:10.9]} 42... Bh5 {[%clk 0:00:03.5]} 43.
Ra3 {[%clk 0:00:10.3]} 43... e5 {[%clk 0:00:02.6]} 44. Rf6+ {[%clk 0:00:07.8]}
44... Kg7 {[%clk 0:00:02.4]} 45. Rc6 {[%clk 0:00:07.1]} 45... e4 {[%clk
0:00:02.6]} 46. Re3 {[%clk 0:00:06.4]} 46... Bg6 {[%clk 0:00:03]} 47. Kf4 {[%clk
0:00:05.8]} 47... Rf2+ {[%clk 0:00:03.1]} 48. Ke5 {[%clk 0:00:06.4]} 48... Rh2
{[%clk 0:00:03.2]} 49. Kd4 {[%clk 0:00:05.1]} 49... Rxh4 {[%clk 0:00:03.7]} 50.
Rc7 {[%clk 0:00:05.8]} 50... Kf6 {[%clk 0:00:03.9]} 51. Rc6+ {[%clk 0:00:06.3]}
51... Kg5 {[%clk 0:00:04.5]} 52. Rc1 {[%clk 0:00:06.4]} 52... f5 {[%clk
0:00:04.8]} 53. Rg1+ {[%clk 0:00:07]} 53... Rg4 {[%clk 0:00:05.3]} 54. Rf1
{[%clk 0:00:05.9]} 54... f4 {[%clk 0:00:05.2]} 55. Rxe4 {[%clk 0:00:06.5]} 55...
Bxe4 {[%clk 0:00:05.1]} 56. Kxe4 {[%clk 0:00:07.4]} 56... Rh4 {[%clk 0:00:03.3]}
57. Rf2 {[%clk 0:00:07.7]} 57... Rg4 {[%clk 0:00:03.2]} 58. Rf3 {[%clk 0:00:08]}
58... Rg3 {[%clk 0:00:02.8]} 59. Rxg3+ {[%clk 0:00:06.7]} 59... fxg3 {[%clk
0:00:02.8]} 60. Kf3 {[%clk 0:00:07.6]} 60... Kh4 {[%clk 0:00:03.6]} 61. Kg2
{[%clk 0:00:08.2]} 61... Kg4 {[%clk 0:00:04.5]} 62. Kg1 {[%clk 0:00:08.8]} 62...
Kf4 {[%clk 0:00:05.2]} 63. Kg2 {[%clk 0:00:09]} 63... Kg4 {[%clk 0:00:05.5]} 64.
Kg1 {[%clk 0:00:09.5]} 64... Kf5 {[%clk 0:00:06.1]} 65. Kg2 {[%clk 0:00:10]}
65... Kg5 {[%clk 0:00:06.8]} 66. Kxg3 {[%clk 0:00:10.4]} 1/2-1/2

[Event "Early-Titled-Tuesday-Blitz-April-23-2024"]
[Site "Chess.com"]
[Date "2024.04.23"]
[Round "4"]
[White "martinmena"]
[Black "BallottiLuca"]
[Result "0-1"]
[WhiteElo "2196"]
[BlackElo "2385"]
[TimeControl "180+1"]
[EndTime "8:41:02 PDT"]
[Termination "BallottiLuca won on time"]

1. c4 {[%clk 0:03:00.9]} 1... Nf6 {[%clk 0:02:57.3]} 2. g3 {[%clk 0:02:59.7]}
2... g6 {[%clk 0:02:57.9]} 3. Bg2 {[%clk 0:02:59.9]} 3... Bg7 {[%clk 0:02:58.8]}
4. Nc3 {[%clk 0:02:58.6]} 4... O-O {[%clk 0:02:57.4]} 5. d3 {[%clk 0:02:58.2]}
5... c5 {[%clk 0:02:55]} 6. e4 {[%clk 0:02:54.7]} 6... Nc6 {[%clk 0:02:53.7]} 7.
h3 {[%clk 0:02:54.2]} 7... d6 {[%clk 0:02:49.3]} 8. Bg5 {[%clk 0:02:54.1]} 8...
Ne8 {[%clk 0:02:47.3]} 9. Qd2 {[%clk 0:02:52.6]} 9... Nc7 {[%clk 0:02:46.9]} 10.
Bh6 {[%clk 0:02:46.7]} 10... Ne6 {[%clk 0:02:46.9]} 11. Bxg7 {[%clk 0:02:44.5]}
11... Kxg7 {[%clk 0:02:47.8]} 12. Nge2 {[%clk 0:02:44.6]} 12... Rb8 {[%clk
0:02:38.5]} 13. O-O {[%clk 0:02:42.5]} 13... a6 {[%clk 0:02:38.8]} 14. f4 {[%clk
0:02:28.7]} 14... Ned4 {[%clk 0:02:36.1]} 15. Nxd4 {[%clk 0:02:24.6]} 15... Nxd4
{[%clk 0:02:37]} 16. Ne2 {[%clk 0:01:48.6]} 16... Nxe2+ {[%clk 0:02:34.2]} 17.
Qxe2 {[%clk 0:01:49.5]} 17... b5 {[%clk 0:02:34.6]} 18. b3 {[%clk 0:01:48.6]}
18... e6 {[%clk 0:02:23]} 19. Rad1 {[%clk 0:01:33.6]} 19... Bb7 {[%clk
0:02:15.3]} 20. f5 {[%clk 0:01:17.6]} 20... exf5 {[%clk 0:02:16.2]} 21. exf5
{[%clk 0:01:17.1]} 21... f6 {[%clk 0:02:01.3]} 22. Bxb7 {[%clk 0:01:03.4]} 22...
Rxb7 {[%clk 0:02:02.2]} 23. Qf3 {[%clk 0:01:03]} 23... Re7 {[%clk 0:01:57.4]}
24. Rfe1 {[%clk 0:01:02.8]} 24... Rfe8 {[%clk 0:01:55.7]} 25. Re4 {[%clk
0:00:34.2]} 25... Re5 {[%clk 0:01:49.8]} 26. g4 {[%clk 0:00:29.9]} 26... Qa8
{[%clk 0:01:30.2]} 27. Rde1 {[%clk 0:00:20.6]} 27... g5 {[%clk 0:01:11.7]} 28.
Kg2 {[%clk 0:00:18.1]} 28... Qd8 {[%clk 0:01:03.3]} 29. Rxe5 {[%clk 0:00:11.3]}
29... dxe5 {[%clk 0:00:57.5]} 30. Qb7+ {[%clk 0:00:11.1]} 30... Re7 {[%clk
0:00:54.6]} 31. Qxa6 {[%clk 0:00:09.3]} 31... Qxd3 {[%clk 0:00:46.8]} 32. cxb5
{[%clk 0:00:04.1]} 32... Qd2+ {[%clk 0:00:44.4]} 33. Kf1 {[%clk 0:00:04.7]}
33... Qd3+ {[%clk 0:00:33.2]} 34. Kg1 {[%clk 0:00:03]} 34... Qg3+ {[%clk
0:00:30.8]} 35. Kf1 {[%clk 0:00:03.3]} 35... Qxh3+ {[%clk 0:00:30.8]} 36. Kf2
{[%clk 0:00:03.2]} 36... Qh2+ {[%clk 0:00:24]} 37. Kf1 {[%clk 0:00:03.1]} 37...
Qf4+ {[%clk 0:00:21.1]} 38. Ke2 {[%clk 0:00:01.9]} 38... Qxg4+ {[%clk 0:00:22]}
39. Kf1 {[%clk 0:00:01.3]} 39... Qxf5+ {[%clk 0:00:21.6]} 40. Kg1 {[%clk
0:00:01.5]} 40... Qg4+ {[%clk 0:00:21.6]} 41. Kf1 {[%clk 0:00:01.9]} 41... Qf3+
{[%clk 0:00:22]} 42. Kg1 {[%clk 0:00:01.8]} 42... Qg3+ {[%clk 0:00:22.2]} 43.
Kf1 {[%clk 0:00:02.4]} 43... e4 {[%clk 0:00:11.8]} 44. Qc6 {[%clk 0:00:01.7]}
44... e3 {[%clk 0:00:08.8]} 45. Qg2 {[%clk 0:00:01.5]} 45... Qf4+ {[%clk
0:00:07.9]} 46. Kg1 {[%clk 0:00:01.8]} 46... Qb4 {[%clk 0:00:04.8]} 47. Re2
{[%clk 0:00:02.3]} 47... Qxb5 {[%clk 0:00:03.9]} 48. Qf1 {[%clk 0:00:02.2]}
48... Qb4 {[%clk 0:00:03.4]} 49. Qe1 {[%clk 0:00:02.3]} 49... Qg4+ {[%clk
0:00:03.5]} 50. Kf1 {[%clk 0:00:02.7]} 50... Qf3+ {[%clk 0:00:03.7]} 51. Kg1
{[%clk 0:00:02.9]} 51... Re4 {[%clk 0:00:03.9]} 52. Qf1 {[%clk 0:00:02.4]} 52...
Rg4+ {[%clk 0:00:04]} 53. Rg2 {[%clk 0:00:03.1]} 53... Rxg2+ {[%clk 0:00:02.8]}
54. Qxg2 {[%clk 0:00:03.8]} 54... Qd1+ {[%clk 0:00:02.2]} 55. Qf1 {[%clk
0:00:03.9]} 55... Qd2 {[%clk 0:00:01.8]} 56. Qc4 {[%clk 0:00:02.3]} 56... e2
{[%clk 0:00:02.3]} 0-1

[Event "Early-Titled-Tuesday-Blitz-April-23-2024"]
[Site "Chess.com"]
[Date "2024.04.23"]
[Round "4"]
[White "Suleyman_Chess06"]
[Black "wannabe2700"]
[Result "1-0"]
[WhiteElo "2835"]
[BlackElo "2605"]
[TimeControl "180+1"]
[EndTime "8:41:13 PDT"]
[Termination "Suleyman_Chess06 won by resignation"]

1. Nf3 {[%clk 0:03:00.9]} 1... f5 {[%clk 0:02:59.6]} 2. g3 {[%clk 0:03:01.6]}
2... Nf6 {[%clk 0:02:59.9]} 3. c4 {[%clk 0:03:02.3]} 3... g6 {[%clk 0:03:00.4]}
4. Bg2 {[%clk 0:03:02.9]} 4... Bg7 {[%clk 0:03:01.1]} 5. O-O {[%clk 0:03:03.7]}
5... O-O {[%clk 0:03:01.9]} 6. d4 {[%clk 0:03:04.3]} 6... d6 {[%clk 0:03:02.5]}
7. Nc3 {[%clk 0:03:05]} 7... c6 {[%clk 0:03:02.6]} 8. Re1 {[%clk 0:03:05.4]}
8... Na6 {[%clk 0:03:02.2]} 9. e4 {[%clk 0:03:05.5]} 9... fxe4 {[%clk
0:03:02.2]} 10. Nxe4 {[%clk 0:03:06.4]} 10... Nxe4 {[%clk 0:03:02.4]} 11. Rxe4
{[%clk 0:03:07.3]} 11... Bf5 {[%clk 0:03:02.4]} 12. Re1 {[%clk 0:03:07.7]} 12...
e5 {[%clk 0:03:02.3]} 13. Be3 {[%clk 0:02:58.3]} 13... Bg4 {[%clk 0:02:50.3]}
14. dxe5 {[%clk 0:02:50.6]} 14... Bxe5 {[%clk 0:02:38.8]} 15. h3 {[%clk
0:02:45.1]} 15... Bxf3 {[%clk 0:02:34.2]} 16. Bxf3 {[%clk 0:02:46]} 16... Qf6
{[%clk 0:02:29.9]} 17. Kg2 {[%clk 0:02:46]} 17... Bxb2 {[%clk 0:02:26.9]} 18.
Rb1 {[%clk 0:02:46.2]} 18... Bc3 {[%clk 0:02:27.6]} 19. Rf1 {[%clk 0:02:46]}
19... Rf7 {[%clk 0:02:24.3]} 20. Be2 {[%clk 0:02:30.2]} 20... Nc5 {[%clk
0:02:20.7]} 21. Qc2 {[%clk 0:02:11.7]} 21... Bd4 {[%clk 0:02:19.4]} 22. Bxd4
{[%clk 0:02:08.3]} 22... Qxd4 {[%clk 0:02:20.3]} 23. Rbd1 {[%clk 0:02:09]} 23...
Qe4+ {[%clk 0:02:13.1]} 24. Qxe4 {[%clk 0:02:08.7]} 24... Nxe4 {[%clk 0:02:14]}
25. Bf3 {[%clk 0:02:08.6]} 25... Ng5 {[%clk 0:02:14.2]} 26. Bg4 {[%clk
0:02:06.8]} 26... Rf6 {[%clk 0:02:07.1]} 27. h4 {[%clk 0:01:57.6]} 27... Nf7
{[%clk 0:02:05.4]} 28. f4 {[%clk 0:01:54.3]} 28... Re8 {[%clk 0:02:02]} 29. Rfe1
{[%clk 0:01:54.8]} 29... Kf8 {[%clk 0:01:59.3]} 30. Rb1 {[%clk 0:01:47.5]} 30...
Rxe1 {[%clk 0:01:57.7]} 31. Rxe1 {[%clk 0:01:48.4]} 31... Nd8 {[%clk 0:01:49.3]}
32. Bd7 {[%clk 0:01:47.5]} 32... Kg7 {[%clk 0:01:40.1]} 33. Re8 {[%clk
0:01:44.6]} 33... Rf8 {[%clk 0:01:40.1]} 34. Re2 {[%clk 0:01:38.3]} 34... Nf7
{[%clk 0:01:38.3]} 35. Re7 {[%clk 0:01:35.3]} 35... Kf6 {[%clk 0:01:31.2]} 36.
Re6+ {[%clk 0:01:35.4]} 36... Kg7 {[%clk 0:01:31.6]} 37. g4 {[%clk 0:01:24.7]}
37... Rd8 {[%clk 0:01:29.3]} 38. Be8 {[%clk 0:01:19]} 38... Kf8 {[%clk
0:01:28.4]} 39. Bxf7 {[%clk 0:01:17.6]} 39... Kxf7 {[%clk 0:01:29.3]} 40. Re3
{[%clk 0:01:17]} 40... d5 {[%clk 0:01:29.5]} 41. cxd5 {[%clk 0:01:16.5]} 41...
Rxd5 {[%clk 0:01:27.2]} 42. Rb3 {[%clk 0:01:10.6]} 42... b6 {[%clk 0:01:25.1]}
43. Kf3 {[%clk 0:01:10.8]} 43... c5 {[%clk 0:01:22.8]} 44. Ke4 {[%clk
0:01:07.6]} 44... Ke6 {[%clk 0:01:17.4]} 45. Re3 {[%clk 0:01:02]} 45... c4
{[%clk 0:01:02.7]} 46. Ra3 {[%clk 0:00:52.9]} 46... a5 {[%clk 0:01:01.1]} 47.
Rc3 {[%clk 0:00:51.2]} 47... b5 {[%clk 0:01:01.2]} 48. a4 {[%clk 0:00:51.6]}
48... Rd3 {[%clk 0:00:43.7]} 49. Rc1 {[%clk 0:00:50.2]} 49... Kd6 {[%clk
0:00:38.7]} 50. axb5 {[%clk 0:00:46]} 50... Kc5 {[%clk 0:00:39]} 51. f5 {[%clk
0:00:40.7]} 51... Rd4+ {[%clk 0:00:39]} 52. Ke5 {[%clk 0:00:40.7]} 52... Rxg4
{[%clk 0:00:38.9]} 53. f6 {[%clk 0:00:33]} 53... Rxh4 {[%clk 0:00:38]} 54. Rf1
{[%clk 0:00:24.4]} 54... Rd4 {[%clk 0:00:33.1]} 55. f7 {[%clk 0:00:22.6]} 55...
Rd8 {[%clk 0:00:32.8]} 56. f8=Q+ {[%clk 0:00:23.3]} 56... Rxf8 {[%clk 0:00:33]}
57. Rxf8 {[%clk 0:00:24.2]} 57... h5 {[%clk 0:00:23.1]} 58. Rb8 {[%clk
0:00:17.6]} 58... h4 {[%clk 0:00:20.7]} 59. b6 {[%clk 0:00:16.4]} 59... g5
{[%clk 0:00:12.5]} 60. b7 {[%clk 0:00:14.8]} 60... Kb6 {[%clk 0:00:11.6]} 61.
Rg8 {[%clk 0:00:10]} 61... Kxb7 {[%clk 0:00:11.9]} 62. Kd4 {[%clk 0:00:10.7]}
1-0

[Event "Early-Titled-Tuesday-Blitz-April-23-2024"]
[Site "Chess.com"]
[Date "2024.04.23"]
[Round "4"]
[White "PonyQueen07"]
[Black "kuchma777"]
[Result "0-1"]
[WhiteElo "2206"]
[BlackElo "2481"]
[TimeControl "180+1"]
[EndTime "8:41:13 PDT"]
[Termination "kuchma777 won by checkmate"]

1. c4 {[%clk 0:03:00.9]} 1... e5 {[%clk 0:02:59.8]} 2. Nc3 {[%clk 0:02:59.6]}
2... Nf6 {[%clk 0:02:59.3]} 3. g3 {[%clk 0:02:59.2]} 3... Bb4 {[%clk 0:02:59.4]}
4. Bg2 {[%clk 0:02:57.4]} 4... O-O {[%clk 0:02:59.5]} 5. Nf3 {[%clk 0:02:57.4]}
5... Re8 {[%clk 0:02:59.9]} 6. O-O {[%clk 0:02:56.7]} 6... Nc6 {[%clk
0:02:57.1]} 7. d3 {[%clk 0:02:56]} 7... d6 {[%clk 0:02:57]} 8. Bg5 {[%clk
0:02:52.7]} 8... h6 {[%clk 0:02:56.9]} 9. Bxf6 {[%clk 0:02:51.7]} 9... Qxf6
{[%clk 0:02:57.8]} 10. Nd5 {[%clk 0:02:51]} 10... Qd8 {[%clk 0:02:58.3]} 11. a3
{[%clk 0:02:50]} 11... Bc5 {[%clk 0:02:55.3]} 12. e3 {[%clk 0:02:46.8]} 12...
Be6 {[%clk 0:02:50.4]} 13. Nc3 {[%clk 0:02:43.6]} 13... a5 {[%clk 0:02:49.7]}
14. d4 {[%clk 0:02:41]} 14... exd4 {[%clk 0:02:40.6]} 15. exd4 {[%clk
0:02:40.4]} 15... Bxc4 {[%clk 0:02:41.2]} 16. dxc5 {[%clk 0:02:40.3]} 16... Bxf1
{[%clk 0:02:41.9]} 17. Qxf1 {[%clk 0:02:37.3]} 17... dxc5 {[%clk 0:02:41.7]} 18.
Rd1 {[%clk 0:02:35.1]} 18... Qc8 {[%clk 0:02:17.8]} 19. Qc4 {[%clk 0:02:20.9]}
19... b6 {[%clk 0:02:02.4]} 20. Nh4 {[%clk 0:01:33.1]} 20... Ne5 {[%clk
0:01:59.9]} 21. Qf1 {[%clk 0:01:19.4]} 21... Rb8 {[%clk 0:01:58.2]} 22. Bh3
{[%clk 0:00:59.2]} 22... Qb7 {[%clk 0:01:49.1]} 23. Bg2 {[%clk 0:00:59.2]} 23...
Qc8 {[%clk 0:01:48.6]} 24. Bh3 {[%clk 0:00:46.4]} 24... Qb7 {[%clk 0:01:39]} 25.
f4 {[%clk 0:00:30.3]} 25... Ng6 {[%clk 0:01:00.9]} 26. Nxg6 {[%clk 0:00:28.8]}
26... fxg6 {[%clk 0:01:01.8]} 27. Qc4+ {[%clk 0:00:25.6]} 27... Kh7 {[%clk
0:01:01.6]} 28. f5 {[%clk 0:00:17.7]} 28... Qf3 {[%clk 0:00:40.8]} 29. fxg6+
{[%clk 0:00:13.9]} 29... Kh8 {[%clk 0:00:40.9]} 30. Rf1 {[%clk 0:00:11.4]} 30...
Qe3+ {[%clk 0:00:41]} 31. Kh1 {[%clk 0:00:11.1]} 31... Rf8 {[%clk 0:00:37.8]}
32. Nd5 {[%clk 0:00:06.7]} 32... Rxf1+ {[%clk 0:00:36]} 33. Qxf1 {[%clk
0:00:06.1]} 33... Qe4+ {[%clk 0:00:33.6]} 34. Bg2 {[%clk 0:00:06.2]} 34... Qxg6
{[%clk 0:00:33.2]} 35. Ne7 {[%clk 0:00:05.3]} 35... Qe6 {[%clk 0:00:30.7]} 36.
Nf5 {[%clk 0:00:03.5]} 36... Rf8 {[%clk 0:00:29.6]} 37. g4 {[%clk 0:00:03.7]}
37... g6 {[%clk 0:00:27.3]} 38. Qc1 {[%clk 0:00:02.9]} 38... gxf5 {[%clk
0:00:26.7]} 39. Qc3+ {[%clk 0:00:02.1]} 39... Qf6 {[%clk 0:00:26.4]} 40. Qxf6+
{[%clk 0:00:02.1]} 40... Rxf6 {[%clk 0:00:26.8]} 41. gxf5 {[%clk 0:00:03]} 41...
Rxf5 {[%clk 0:00:27.5]} 42. Bc6 {[%clk 0:00:03]} 42... Rf2 {[%clk 0:00:25.5]}
43. b3 {[%clk 0:00:02.1]} 43... Kg7 {[%clk 0:00:23.2]} 44. a4 {[%clk 0:00:02.1]}
44... Rb2 {[%clk 0:00:23.1]} 45. Bd5 {[%clk 0:00:02.1]} 45... Kf6 {[%clk
0:00:23.6]} 46. Bc4 {[%clk 0:00:02.6]} 46... Ke5 {[%clk 0:00:23.9]} 47. Kg1
{[%clk 0:00:02.8]} 47... Kd4 {[%clk 0:00:23.5]} 48. h4 {[%clk 0:00:03.1]} 48...
Rc2 {[%clk 0:00:23.3]} 49. Bf7 {[%clk 0:00:02.5]} 49... Ke3 {[%clk 0:00:20.6]}
50. h5 {[%clk 0:00:02.6]} 50... Kf3 {[%clk 0:00:20.1]} 51. Bd5+ {[%clk
0:00:02.3]} 51... Kg3 {[%clk 0:00:19.8]} 52. Kf1 {[%clk 0:00:02.8]} 52... Rf2+
{[%clk 0:00:19]} 53. Ke1 {[%clk 0:00:02.8]} 53... Rf5 {[%clk 0:00:19.6]} 54. Bc4
{[%clk 0:00:01.7]} 54... Rxh5 {[%clk 0:00:19.3]} 55. Kd2 {[%clk 0:00:02.6]}
55... Rf5 {[%clk 0:00:19.2]} 56. Ke3 {[%clk 0:00:03.5]} 56... h5 {[%clk
0:00:18.5]} 57. Ke4 {[%clk 0:00:04.4]} 57... Rf4+ {[%clk 0:00:18.7]} 58. Kd5
{[%clk 0:00:04.9]} 58... h4 {[%clk 0:00:18.7]} 59. Kc6 {[%clk 0:00:04.9]} 59...
Rf6+ {[%clk 0:00:17.8]} 60. Kxc7 {[%clk 0:00:05]} 60... h3 {[%clk 0:00:17.9]}
61. Bd5 {[%clk 0:00:05.4]} 61... h2 {[%clk 0:00:18.2]} 62. Kb7 {[%clk
0:00:05.7]} 62... Kf2 {[%clk 0:00:17.1]} 63. Ka6 {[%clk 0:00:05.2]} 63... Kg1
{[%clk 0:00:17.3]} 64. Kb5 {[%clk 0:00:05.7]} 64... h1=Q {[%clk 0:00:17.5]} 65.
Bxh1 {[%clk 0:00:06.3]} 65... Kxh1 {[%clk 0:00:18.4]} 66. Kc4 {[%clk 0:00:06.8]}
66... Kg2 {[%clk 0:00:18.8]} 67. Kb5 {[%clk 0:00:07.4]} 67... Kf3 {[%clk
0:00:18.6]} 68. Kc4 {[%clk 0:00:08.3]} 68... Rf4+ {[%clk 0:00:18.6]} 69. Kb5
{[%clk 0:00:08.7]} 69... Rb4+ {[%clk 0:00:19.2]} 70. Kc6 {[%clk 0:00:09]} 70...
Rxb3 {[%clk 0:00:19.4]} 71. Kb7 {[%clk 0:00:09.5]} 71... c4 {[%clk 0:00:19.6]}
72. Ka6 {[%clk 0:00:10.4]} 72... c3 {[%clk 0:00:19.9]} 73. Kb7 {[%clk
0:00:11.3]} 73... c2 {[%clk 0:00:20.4]} 74. Ka6 {[%clk 0:00:12.2]} 74... c1=Q
{[%clk 0:00:20.8]} 75. Kb7 {[%clk 0:00:13.1]} 75... b5 {[%clk 0:00:20.5]} 76.
Ka6 {[%clk 0:00:14]} 76... bxa4 {[%clk 0:00:20.8]} 77. Ka7 {[%clk 0:00:14.2]}
77... a3 {[%clk 0:00:20.7]} 78. Ka6 {[%clk 0:00:15.1]} 78... a2 {[%clk 0:00:21]}
79. Ka7 {[%clk 0:00:16]} 79... a4 {[%clk 0:00:21.5]} 80. Ka6 {[%clk 0:00:16.9]}
80... a3 {[%clk 0:00:22.1]} 81. Ka7 {[%clk 0:00:17.8]} 81... a1=Q {[%clk
0:00:22.5]} 82. Ka6 {[%clk 0:00:18.7]} 82... a2 {[%clk 0:00:22.9]} 83. Ka7
{[%clk 0:00:19.6]} 83... Qab1 {[%clk 0:00:21.5]} 84. Ka6 {[%clk 0:00:20.5]}
84... a1=Q# {[%clk 0:00:22]} 0-1